[Event "Championnat d'Europe de Blitz"]
[Date "2024.12.09"]
[White "Jobava, Baadur"]
[Black "Saric, Ante"]
[WhiteElo "2578"]
[BlackElo "2482"]
[Round "4.5"]
[Result "1-0"]
[TimeControl "180+2"]

1. e4 {[%emt 00:19:06] [%clk 00:03:02]} d5 {[%emt 00:00:01] [%clk 00:03:04]} 2.
exd5 {[%emt 00:00:01] [%clk 00:03:01]} Nf6 {[%emt 00:00:01] [%clk 00:03:05]} 3.
d4 {[%emt 00:00:02] [%clk 00:03:01]} Bg4 {[%emt 00:00:01] [%clk 00:03:06]} 4.
Be2 {[%emt 00:00:02] [%clk 00:03:01]} Bxe2 {[%emt 00:00:01] [%clk 00:03:06]} 5.
Qxe2 {[%emt 00:00:02] [%clk 00:03:01]} Qxd5 {[%emt 00:00:01] [%clk 00:03:07]} 6.
Nf3 {[%clk 00:03:02]} e6 {[%emt 00:00:01] [%clk 00:03:08]} 7. O-O {[%emt
00:00:05] [%clk 00:02:59]} Nc6 {[%emt 00:00:01] [%clk 00:03:10]} 8. Rd1 {[%emt
00:00:02] [%clk 00:02:58]} O-O-O {[%emt 00:00:02] [%clk 00:03:10]} 9. c4 {[%emt
00:00:03] [%clk 00:02:58]} Qf5 {[%emt 00:00:07] [%clk 00:03:04]} 10. Nc3 {[%emt
00:00:03] [%clk 00:02:57]} Be7 {[%emt 00:00:06] [%clk 00:03:00]} 11. h3 {[%emt
00:00:08] [%clk 00:02:51]} Rhg8 {[%emt 00:00:07] [%clk 00:02:54]} 12. Be3 {[%emt
00:00:22] [%clk 00:02:33]} g5 {[%emt 00:00:03] [%clk 00:02:52]} 13. g4 {[%emt
00:00:07] [%clk 00:02:28]} Qg6 {[%emt 00:00:22] [%clk 00:02:32]} 14. d5 {[%emt
00:00:03] [%clk 00:02:27]} exd5 {[%emt 00:00:28] [%clk 00:02:07]} 15. cxd5
{[%emt 00:00:01] [%clk 00:02:27]} Nb4 {[%clk 00:02:08]} 16. Qc4 {[%emt 00:00:12]
[%clk 00:02:18]} Bd6 {[%emt 00:00:47] [%clk 00:01:23]} 17. Rac1 {[%emt 00:00:07]
[%clk 00:02:13]} h5 {[%emt 00:00:29] [%clk 00:00:55]} 18. Nb5 {[%emt 00:00:09]
[%clk 00:02:06]} Na6 {[%emt 00:00:04] [%clk 00:00:53]} 19. Nxa7+ {[%emt
00:00:03] [%clk 00:02:05]} Kb8 {[%emt 00:00:02] [%clk 00:00:53]} 20. Nc6+ {[%emt
00:00:02] [%clk 00:02:06]} Kc8 {[%clk 00:00:54]} 21. Nfe5 {[%emt 00:00:10] [%clk
00:01:57]} Qh7 {[%emt 00:00:12] [%clk 00:00:44]} 22. Na7+ {[%emt 00:00:02] [%clk
00:01:58]} Kb8 {[%emt 00:00:02] [%clk 00:00:44]} 23. Nec6+ {[%clk 00:01:59]} Ka8
{[%emt 00:00:03] [%clk 00:00:43]} 24. Nb5 {[%emt 00:00:38] [%clk 00:01:22]} hxg4
{[%emt 00:00:08] [%clk 00:00:37]} 25. Qd4 {[%emt 00:00:04] [%clk 00:01:20]} b6
{[%emt 00:00:06] [%clk 00:00:34]} 26. Qa4 {[%emt 00:00:23] [%clk 00:00:58]} Kb7
{[%emt 00:00:01] [%clk 00:00:35]} 27. Na5+ {[%emt 00:00:30] [%clk 00:00:30]}
bxa5 {[%emt 00:00:03] [%clk 00:00:35]} 28. Qd4 {[%emt 00:00:16] [%clk 00:00:16]}
Bh2+ {[%emt 00:00:29] [%clk 00:00:07]} 29. Kxh2 {[%emt 00:00:07] [%clk
00:00:11]} Qxh3+ {[%emt 00:00:01] [%clk 00:00:08]} 30. Kg1 {[%clk 00:00:13]} Ra8
{[%emt 00:00:06] [%clk 00:00:05]} 31. Rxc7+ {[%emt 00:00:03] [%clk 00:00:12]}
1-0

[Site "Europe Echecs"]

[Event "Championnat d'Europe de Blitz"]
[Date "2024.12.09"]
[White "Gavrilescu, David"]
[Black "Santos Latasa, Jaime"]
[WhiteElo "2549"]
[BlackElo "2628"]
[Round "4.6"]
[Result "1/2-1/2"]
[TimeControl "180+2"]

1. e4 {[%emt 00:00:04] [%clk 00:03:02]} c5 {[%clk 00:03:04]} 2. Nf3 {[%clk
00:03:03]} Nc6 {[%clk 00:03:05]} 3. Bb5 {[%emt 00:00:01] [%clk 00:03:03]} e6
{[%emt 00:00:02] [%clk 00:03:06]} 4. O-O {[%emt 00:00:02] [%clk 00:03:03]} Nge7
{[%emt 00:00:01] [%clk 00:03:07]} 5. Re1 {[%emt 00:00:01] [%clk 00:03:04]} a6
{[%emt 00:00:02] [%clk 00:03:07]} 6. Bf1 {[%emt 00:00:02] [%clk 00:03:04]} d5
{[%emt 00:00:02] [%clk 00:03:07]} 7. exd5 {[%emt 00:00:01] [%clk 00:03:04]} Nxd5
{[%emt 00:00:02] [%clk 00:03:08]} 8. d4 {[%emt 00:00:02] [%clk 00:03:03]} Nf6
{[%emt 00:00:03] [%clk 00:03:07]} 9. Be3 {[%emt 00:00:03] [%clk 00:03:02]} cxd4
{[%emt 00:00:11] [%clk 00:02:58]} 10. Nxd4 {[%emt 00:00:02] [%clk 00:03:02]} Bd7
{[%emt 00:00:01] [%clk 00:02:59]} 11. c4 {[%emt 00:00:04] [%clk 00:03:01]} Qc7
{[%emt 00:00:01] [%clk 00:03:00]} 12. Nc3 {[%emt 00:00:09] [%clk 00:02:53]} Bd6
{[%emt 00:00:05] [%clk 00:02:58]} 13. h3 {[%emt 00:00:03] [%clk 00:02:51]} O-O
{[%emt 00:00:20] [%clk 00:02:41]} 14. Rc1 {[%emt 00:00:11] [%clk 00:02:41]} Rfd8
{[%emt 00:00:26] [%clk 00:02:18]} 15. Nxc6 {[%emt 00:00:20] [%clk 00:02:22]}
Bxc6 {[%emt 00:00:07] [%clk 00:02:13]} 16. Qb3 {[%emt 00:00:01] [%clk 00:02:23]}
Qe7 {[%emt 00:00:23] [%clk 00:01:53]} 17. Bb6 {[%emt 00:00:27] [%clk 00:01:58]}
Rd7 {[%emt 00:00:07] [%clk 00:01:48]} 18. Rcd1 {[%emt 00:00:06] [%clk 00:01:54]}
Bc5 {[%emt 00:00:14] [%clk 00:01:36]} 19. Bxc5 {[%emt 00:00:16] [%clk 00:01:39]}
Qxc5 {[%emt 00:00:02] [%clk 00:01:36]} 20. Na4 {[%emt 00:00:10] [%clk 00:01:31]}
Bxa4 {[%emt 00:00:12] [%clk 00:01:26]} 21. Qxa4 {[%emt 00:00:02] [%clk
00:01:32]} Rad8 {[%emt 00:00:02] [%clk 00:01:26]} 22. Rxd7 {[%emt 00:00:05]
[%clk 00:01:28]} Rxd7 {[%emt 00:00:06] [%clk 00:01:23]} 23. Rd1 {[%emt 00:00:12]
[%clk 00:01:18]} Rxd1 {[%emt 00:00:04] [%clk 00:01:20]} 24. Qxd1 {[%emt
00:00:02] [%clk 00:01:18]} Qc7 {[%emt 00:00:28] [%clk 00:00:54]} 25. b4 {[%emt
00:00:06] [%clk 00:01:14]} a5 {[%clk 00:00:56]} 26. a3 {[%emt 00:00:01] [%clk
00:01:15]} axb4 {[%emt 00:00:02] [%clk 00:00:57]} 27. axb4 {[%clk 00:01:15]} b6
{[%emt 00:00:03] [%clk 00:00:57]} 28. Qf3 {[%emt 00:00:07] [%clk 00:01:09]} Qc8
{[%emt 00:00:25] [%clk 00:00:34]} 29. Qe3 {[%emt 00:00:29] [%clk 00:00:43]} Nd7
{[%emt 00:00:06] [%clk 00:00:30]} 30. h4 {[%emt 00:00:11] [%clk 00:00:34]} h5
{[%emt 00:00:05] [%clk 00:00:27]} 31. Qd4 {[%emt 00:00:15] [%clk 00:00:20]} Qc7
{[%emt 00:00:03] [%clk 00:00:26]} 32. g3 {[%emt 00:00:02] [%clk 00:00:20]} g6
{[%emt 00:00:02] [%clk 00:00:26]} 33. Be2 {[%emt 00:00:05] [%clk 00:00:18]} Kf8
{[%emt 00:00:04] [%clk 00:00:24]} 34. Qe4 {[%emt 00:00:08] [%clk 00:00:12]} Ke7
{[%emt 00:00:02] [%clk 00:00:23]} 35. Qd4 {[%emt 00:00:04] [%clk 00:00:11]} Kf8
{[%emt 00:00:09] [%clk 00:00:16]} 36. Qh8+ {[%emt 00:00:02] [%clk 00:00:11]} Ke7
{[%clk 00:00:17]} 37. Qd4 {[%emt 00:00:01] [%clk 00:00:12]} 1/2-1/2

[Site "Europe Echecs"]

[Event "Championnat d'Europe de Blitz"]
[Date "2024.12.09"]
[White "Van Foreest, Jorden"]
[Black "Georgiev, Kiril"]
[WhiteElo "2677"]
[BlackElo "2537"]
[Round "4.7"]
[Result "1-0"]
[TimeControl "180+2"]

1. e4 {[%emt 00:00:01] [%clk 00:03:03]} e5 {[%emt 00:00:05] [%clk 00:02:59]} 2.
Nf3 {[%emt 00:00:02] [%clk 00:03:03]} Nc6 {[%clk 00:03:00]} 3. Bb5 {[%emt
00:00:02] [%clk 00:03:03]} Nf6 {[%emt 00:00:02] [%clk 00:03:00]} 4. O-O {[%emt
00:00:02] [%clk 00:03:03]} Nxe4 {[%emt 00:00:03] [%clk 00:03:00]} 5. Re1 {[%emt
00:00:01] [%clk 00:03:03]} Nd6 {[%emt 00:00:02] [%clk 00:03:00]} 6. Nxe5 {[%emt
00:00:03] [%clk 00:03:02]} Be7 {[%emt 00:00:01] [%clk 00:03:01]} 7. Bf1 {[%emt
00:00:02] [%clk 00:03:03]} Nf5 {[%emt 00:00:10] [%clk 00:02:52]} 8. Nf3 {[%emt
00:00:02] [%clk 00:03:02]} d5 {[%emt 00:00:03] [%clk 00:02:52]} 9. d4 {[%emt
00:00:01] [%clk 00:03:03]} O-O {[%emt 00:00:03] [%clk 00:02:51]} 10. Nc3 {[%emt
00:00:01] [%clk 00:03:04]} Bf6 {[%emt 00:00:06] [%clk 00:02:48]} 11. Ne2 {[%emt
00:00:04] [%clk 00:03:01]} Re8 {[%emt 00:00:10] [%clk 00:02:40]} 12. c3 {[%emt
00:00:02] [%clk 00:03:01]} g6 {[%emt 00:00:04] [%clk 00:02:38]} 13. g3 {[%emt
00:00:02] [%clk 00:03:01]} Nce7 {[%emt 00:00:08] [%clk 00:02:32]} 14. a4 {[%emt
00:00:02] [%clk 00:03:01]} a5 {[%emt 00:00:08] [%clk 00:02:26]} 15. Bg2 {[%emt
00:00:05] [%clk 00:02:59]} c6 {[%emt 00:00:02] [%clk 00:02:27]} 16. Nf4 {[%emt
00:00:02] [%clk 00:02:58]} Ng7 {[%emt 00:00:08] [%clk 00:02:21]} 17. Nd3 {[%emt
00:00:03] [%clk 00:02:57]} Nef5 {[%emt 00:00:03] [%clk 00:02:20]} 18. Bf4 {[%emt
00:00:05] [%clk 00:02:54]} Rxe1+ {[%emt 00:00:04] [%clk 00:02:18]} 19. Qxe1
{[%emt 00:00:02] [%clk 00:02:55]} Ne6 {[%emt 00:00:05] [%clk 00:02:14]} 20. Bd2
{[%emt 00:00:02] [%clk 00:02:55]} Nd6 {[%emt 00:00:06] [%clk 00:02:10]} 21. Nfe5
{[%emt 00:00:02] [%clk 00:02:55]} Bg7 {[%emt 00:00:01] [%clk 00:02:10]} 22. h4
{[%emt 00:00:01] [%clk 00:02:56]} Nc4 {[%emt 00:00:12] [%clk 00:02:00]} 23. Nxc4
{[%emt 00:00:02] [%clk 00:02:57]} dxc4 {[%emt 00:00:01] [%clk 00:02:01]} 24. Ne5
{[%emt 00:00:01] [%clk 00:02:58]} c5 {[%emt 00:00:09] [%clk 00:01:53]} 25. d5
{[%emt 00:00:02] [%clk 00:02:59]} Nc7 {[%clk 00:01:54]} 26. Nxc4 {[%emt
00:00:02] [%clk 00:03:00]} Nxd5 {[%emt 00:00:06] [%clk 00:01:50]} 27. Bg5 {[%emt
00:00:39] [%clk 00:02:23]} Nf6 {[%emt 00:00:10] [%clk 00:01:41]} 28. Rd1 {[%emt
00:00:06] [%clk 00:02:19]} Qf8 {[%emt 00:00:06] [%clk 00:01:37]} 29. Nb6 {[%emt
00:00:47] [%clk 00:01:34]} Ra6 {[%emt 00:00:08] [%clk 00:01:31]} 30. Nxc8 {[%emt
00:00:01] [%clk 00:01:35]} Qxc8 {[%emt 00:00:02] [%clk 00:01:31]} 31. Qe7 {[%emt
00:00:01] [%clk 00:01:36]} Bf8 {[%emt 00:01:21] [%clk 00:00:12]} 32. Rd8 {[%emt
00:00:05] [%clk 00:01:33]} 1-0

[Site "Europe Echecs"]

[Event "Championnat d'Europe de Blitz"]
[Date "2024.12.09"]
[White "Alonso Rosell, Alvar"]
[Black "Dvirnyy, Danyyil"]
[WhiteElo "2532"]
[BlackElo "2491"]
[Round "4.8"]
[Result "1-0"]
[TimeControl "180+2"]

1. d4 {[%clk 00:03:02]} Nf6 {[%clk 00:03:03]} 2. Nf3 {[%emt 00:00:03] [%clk
00:03:03]} d5 {[%emt 00:00:04] [%clk 00:02:59]} 3. e3 {[%emt 00:00:01] [%clk
00:03:04]} g6 {[%emt 00:00:07] [%clk 00:02:55]} 4. c4 {[%emt 00:00:09] [%clk
00:02:56]} c6 {[%clk 00:02:56]} 5. Be2 {[%emt 00:00:07] [%clk 00:02:51]} Bg7
{[%emt 00:00:01] [%clk 00:02:57]} 6. O-O {[%emt 00:00:04] [%clk 00:02:50]} O-O
{[%emt 00:00:02] [%clk 00:02:57]} 7. a4 {[%emt 00:00:16] [%clk 00:02:36]} c5
{[%emt 00:00:21] [%clk 00:02:38]} 8. dxc5 {[%emt 00:00:22] [%clk 00:02:16]} Na6
{[%emt 00:00:02] [%clk 00:02:38]} 9. b3 {[%emt 00:00:14] [%clk 00:02:04]} Ne4
{[%emt 00:00:24] [%clk 00:02:16]} 10. Nd4 {[%emt 00:00:26] [%clk 00:01:40]}
Nexc5 {[%emt 00:00:33] [%clk 00:01:45]} 11. Ba3 {[%emt 00:00:04] [%clk
00:01:39]} e5 {[%emt 00:00:33] [%clk 00:01:14]} 12. Nb5 {[%emt 00:00:04] [%clk
00:01:36]} d4 {[%emt 00:00:03] [%clk 00:01:14]} 13. exd4 {[%emt 00:00:04] [%clk
00:01:33]} exd4 {[%emt 00:00:01] [%clk 00:01:15]} 14. Bf3 {[%emt 00:00:03] [%clk
00:01:31]} Bf5 {[%emt 00:00:25] [%clk 00:00:52]} 15. Bb2 {[%emt 00:00:10] [%clk
00:01:23]} d3 {[%emt 00:00:15] [%clk 00:00:39]} 16. Bxg7 {[%emt 00:00:07] [%clk
00:01:19]} Kxg7 {[%clk 00:00:40]} 17. N1c3 {[%clk 00:01:20]} Nb4 {[%emt
00:00:02] [%clk 00:00:41]} 18. Nd5 {[%emt 00:00:03] [%clk 00:01:18]} Nxd5 {[%emt
00:00:03] [%clk 00:00:41]} 19. Bxd5 {[%emt 00:00:01] [%clk 00:01:19]} a5 {[%emt
00:00:19] [%clk 00:00:24]} 20. Rb1 {[%emt 00:00:45] [%clk 00:00:36]} Qf6 {[%emt
00:00:01] [%clk 00:00:24]} 21. Qd2 {[%emt 00:00:03] [%clk 00:00:35]} Rfd8 {[%emt
00:00:09] [%clk 00:00:17]} 22. Nc3 {[%emt 00:00:03] [%clk 00:00:33]} Re8 {[%emt
00:00:10] [%clk 00:00:10]} 23. Bf3 {[%emt 00:00:02] [%clk 00:00:32]} Qd4 {[%emt
00:00:04] [%clk 00:00:09]} 24. Nb5 {[%emt 00:00:04] [%clk 00:00:31]} Qe5 {[%emt
00:00:02] [%clk 00:00:09]} 25. Rfe1 {[%emt 00:00:04] [%clk 00:00:29]} Qf6 {[%emt
00:00:04] [%clk 00:00:06]} 26. Rxe8 {[%emt 00:00:03] [%clk 00:00:28]} Rxe8
{[%clk 00:00:08]} 27. Nc3 {[%emt 00:00:09] [%clk 00:00:21]} b6 {[%emt 00:00:02]
[%clk 00:00:07]} 28. Nd5 {[%emt 00:00:02] [%clk 00:00:21]} Qd6 {[%emt 00:00:02]
[%clk 00:00:07]} 29. Qc3+ {[%emt 00:00:04] [%clk 00:00:19]} f6 {[%clk 00:00:08]}
30. h3 {[%emt 00:00:07] [%clk 00:00:15]} h5 {[%clk 00:00:09]} 31. Rd1 {[%emt
00:00:02] [%clk 00:00:15]} h4 {[%emt 00:00:01] [%clk 00:00:10]} 32. Qd4 {[%emt
00:00:03] [%clk 00:00:14]} g5 {[%emt 00:00:01] [%clk 00:00:11]} 33. Ne3 {[%emt
00:00:05] [%clk 00:00:11]} Qe5 {[%clk 00:00:13]} 34. Qd6 {[%emt 00:00:06] [%clk
00:00:07]} Kg6 {[%emt 00:00:02] [%clk 00:00:12]} 35. Qxb6 {[%emt 00:00:02] [%clk
00:00:07]} Be4 {[%emt 00:00:04] [%clk 00:00:10]} 36. Qb5 {[%emt 00:00:01] [%clk
00:00:08]} Bxf3 {[%emt 00:00:03] [%clk 00:00:10]} 37. gxf3 {[%emt 00:00:01]
[%clk 00:00:09]} Rd8 {[%emt 00:00:01] [%clk 00:00:10]} 38. Qxa5 {[%emt 00:00:04]
[%clk 00:00:07]} Rd4 {[%emt 00:00:02] [%clk 00:00:11]} 39. Qa8 {[%emt 00:00:02]
[%clk 00:00:07]} Nxb3 {[%emt 00:00:02] [%clk 00:00:11]} 40. Qg8+ {[%emt
00:00:02] [%clk 00:00:07]} 1-0

[Site "Europe Echecs"]

[Event "Championnat d'Europe de Blitz"]
[Date "2024.12.09"]
[White "Muradli, Mahammad"]
[Black "Bernadskiy, Vitaliy"]
[WhiteElo "2588"]
[BlackElo "2546"]
[Round "4.9"]
[Result "1-0"]
[TimeControl "180+2"]

1. Nf3 {[%emt 00:18:13] [%clk 00:03:02]} Nf6 {[%emt 00:00:01] [%clk 00:03:03]}
2. c4 {[%clk 00:03:03]} b6 {[%emt 00:00:09] [%clk 00:02:56]} 3. g3 {[%emt
00:00:01] [%clk 00:03:03]} Bb7 {[%emt 00:00:02] [%clk 00:02:57]} 4. d4 {[%emt
00:00:08] [%clk 00:02:57]} g6 {[%emt 00:00:04] [%clk 00:02:55]} 5. Nc3 {[%emt
00:00:15] [%clk 00:02:44]} Bg7 {[%emt 00:00:15] [%clk 00:02:43]} 6. d5 {[%emt
00:00:01] [%clk 00:02:45]} O-O {[%emt 00:00:02] [%clk 00:02:43]} 7. Bg2 {[%clk
00:02:46]} Na6 {[%emt 00:00:21] [%clk 00:02:24]} 8. O-O {[%emt 00:00:05] [%clk
00:02:42]} Nc5 {[%emt 00:00:02] [%clk 00:02:25]} 9. Nd4 {[%emt 00:00:21] [%clk
00:02:23]} e5 {[%emt 00:00:18] [%clk 00:02:09]} 10. Nb3 {[%emt 00:00:31] [%clk
00:01:54]} d6 {[%emt 00:00:03] [%clk 00:02:09]} 11. Nxc5 {[%emt 00:00:05] [%clk
00:01:51]} bxc5 {[%emt 00:00:01] [%clk 00:02:10]} 12. a3 {[%emt 00:00:19] [%clk
00:01:34]} a5 {[%emt 00:00:05] [%clk 00:02:07]} 13. a4 {[%emt 00:00:02] [%clk
00:01:34]} Bc8 {[%emt 00:00:03] [%clk 00:02:07]} 14. Nb5 {[%clk 00:01:35]} Nh5
{[%emt 00:00:34] [%clk 00:01:35]} 15. Bd2 {[%emt 00:00:01] [%clk 00:01:35]} f5
{[%emt 00:00:02] [%clk 00:01:35]} 16. Qe1 {[%emt 00:00:02] [%clk 00:01:36]} f4
{[%emt 00:00:26] [%clk 00:01:10]} 17. Bxa5 {[%emt 00:00:02] [%clk 00:01:36]} Rf7
{[%emt 00:00:01] [%clk 00:01:11]} 18. Ra3 {[%emt 00:00:05] [%clk 00:01:34]} g5
{[%emt 00:00:21] [%clk 00:00:52]} 19. b4 {[%clk 00:01:35]} cxb4 {[%emt 00:00:26]
[%clk 00:00:27]} 20. Qxb4 {[%emt 00:00:06] [%clk 00:01:31]} c5 {[%emt 00:00:15]
[%clk 00:00:14]} 21. Bxd8 {[%emt 00:00:14] [%clk 00:01:19]} cxb4 {[%emt
00:00:02] [%clk 00:00:15]} 22. Rb3 {[%clk 00:01:20]} Rxa4 {[%emt 00:00:05] [%clk
00:00:12]} 23. Nxd6 {[%clk 00:01:21]} Rd7 {[%emt 00:00:07] [%clk 00:00:07]} 24.
Nxc8 {[%emt 00:00:02] [%clk 00:01:22]} Rxd8 {[%clk 00:00:08]} 25. Nb6 {[%emt
00:00:03] [%clk 00:01:21]} Ra2 {[%emt 00:00:01] [%clk 00:00:09]} 26. Rxb4 {[%emt
00:00:04] [%clk 00:01:20]} Bf8 {[%clk 00:00:09]} 27. Rb5 {[%emt 00:00:04] [%clk
00:01:19]} fxg3 {[%emt 00:00:03] [%clk 00:00:08]} 28. hxg3 {[%emt 00:00:05]
[%clk 00:01:15]} Rc2 {[%emt 00:00:04] [%clk 00:00:06]} 29. Be4 {[%emt 00:00:13]
[%clk 00:01:04]} Rc3 {[%emt 00:00:02] [%clk 00:00:07]} 30. Rd1 {[%emt 00:00:04]
[%clk 00:01:01]} Nf6 {[%emt 00:00:05] [%clk 00:00:04]} 31. Bf5 {[%clk 00:01:03]}
e4 {[%emt 00:00:03] [%clk 00:00:04]} 32. e3 {[%emt 00:00:04] [%clk 00:01:00]} h5
{[%emt 00:00:03] [%clk 00:00:03]} 33. Rd4 {[%emt 00:00:05] [%clk 00:00:57]} h4
{[%emt 00:00:02] [%clk 00:00:04]} 34. gxh4 {[%emt 00:00:01] [%clk 00:00:58]}
gxh4 {[%clk 00:00:05]} 35. Bxe4 {[%emt 00:00:02] [%clk 00:00:57]} h3 {[%clk
00:00:06]} 36. Bf5 {[%emt 00:00:08] [%clk 00:00:51]} Rc1+ {[%emt 00:00:03] [%clk
00:00:06]} 37. Kh2 {[%clk 00:00:52]} Bd6+ {[%emt 00:00:02] [%clk 00:00:06]} 38.
Kxh3 {[%emt 00:00:08] [%clk 00:00:46]} Kg7 {[%emt 00:00:01] [%clk 00:00:08]} 39.
Kg2 {[%emt 00:00:02] [%clk 00:00:46]} Rh8 {[%emt 00:00:01] [%clk 00:00:08]} 40.
Nd7 {[%emt 00:00:19] [%clk 00:00:30]} Rh2+ {[%emt 00:00:01] [%clk 00:00:08]} 41.
Kf3 {[%emt 00:00:01] [%clk 00:00:31]} Rf1 {[%emt 00:00:01] [%clk 00:00:09]} 42.
Rd2 {[%emt 00:00:01] [%clk 00:00:32]} Nh7 {[%emt 00:00:01] [%clk 00:00:09]} 43.
e4 {[%emt 00:00:13] [%clk 00:00:21]} Re1 {[%clk 00:00:10]} 44. e5 {[%emt
00:00:11] [%clk 00:00:13]} Ng5+ {[%clk 00:00:11]} 45. Kf4 {[%clk 00:00:14]} Rh4+
{[%emt 00:00:05] [%clk 00:00:08]} 46. Kxg5 {[%emt 00:00:03] [%clk 00:00:13]}
Be7+ {[%emt 00:00:05] [%clk 00:00:06]} 47. Nf6 {[%emt 00:00:01] [%clk 00:00:14]}
Rh2 {[%emt 00:00:05] [%clk 00:00:03]} 48. Rb7 {[%emt 00:00:07] [%clk 00:00:09]}
Rxe5 {[%emt 00:00:03] [%clk 00:00:00]} 1-0

[Site "Europe Echecs"]

[Event "Championnat d'Europe de Blitz"]
[Date "2024.12.09"]
[White "Kazakouski, Valery"]
[Black "Pancevski, Filip"]
[WhiteElo "2567"]
[BlackElo "2420"]
[Round "4.10"]
[Result "1-0"]
[TimeControl "180+2"]

1. e4 {[%clk 00:03:03]} d6 {[%emt 00:00:03] [%clk 00:03:04]} 2. d4 {[%clk
00:03:04]} Nf6 {[%clk 00:03:05]} 3. Nc3 {[%clk 00:03:05]} e5 {[%clk 00:03:06]}
4. Nge2 {[%emt 00:00:03] [%clk 00:03:04]} Be7 {[%emt 00:00:04] [%clk 00:03:05]}
5. g3 {[%emt 00:00:01] [%clk 00:03:05]} c6 {[%emt 00:00:01] [%clk 00:03:06]} 6.
a4 {[%emt 00:00:02] [%clk 00:03:05]} b6 {[%emt 00:00:03] [%clk 00:03:05]} 7. Bg2
{[%emt 00:00:02] [%clk 00:03:05]} Nbd7 {[%clk 00:03:06]} 8. h3 {[%emt 00:00:02]
[%clk 00:03:05]} h5 {[%clk 00:03:07]} 9. O-O {[%emt 00:00:05] [%clk 00:03:02]}
a6 {[%emt 00:00:02] [%clk 00:03:08]} 10. d5 {[%emt 00:00:10] [%clk 00:02:54]} c5
{[%emt 00:00:01] [%clk 00:03:09]} 11. h4 {[%emt 00:00:15] [%clk 00:02:41]} Nf8
{[%emt 00:00:05] [%clk 00:03:05]} 12. Kh1 {[%emt 00:00:06] [%clk 00:02:37]} Ng6
{[%emt 00:00:04] [%clk 00:03:03]} 13. Bg5 {[%emt 00:00:02] [%clk 00:02:37]} Ng4
{[%emt 00:00:05] [%clk 00:03:00]} 14. Bxe7 {[%emt 00:00:33] [%clk 00:02:06]}
Qxe7 {[%emt 00:00:02] [%clk 00:03:01]} 15. Ng1 {[%clk 00:02:07]} Bd7 {[%emt
00:01:14] [%clk 00:01:49]} 16. Nh3 {[%emt 00:00:05] [%clk 00:02:03]} O-O {[%emt
00:00:05] [%clk 00:01:47]} 17. Qd2 {[%emt 00:00:01] [%clk 00:02:04]} b5 {[%emt
00:00:02] [%clk 00:01:47]} 18. f3 {[%emt 00:00:06] [%clk 00:02:00]} Nf6 {[%emt
00:00:01] [%clk 00:01:48]} 19. Qg5 {[%emt 00:00:17] [%clk 00:01:44]} Rfb8 {[%emt
00:00:11] [%clk 00:01:39]} 20. axb5 {[%emt 00:00:07] [%clk 00:01:40]} axb5
{[%emt 00:00:01] [%clk 00:01:40]} 21. Rfc1 {[%emt 00:00:40] [%clk 00:01:02]} Nf8
{[%emt 00:00:08] [%clk 00:01:34]} 22. Nd1 {[%emt 00:00:05] [%clk 00:00:59]} Qd8
{[%emt 00:00:09] [%clk 00:01:27]} 23. Qd2 {[%emt 00:00:06] [%clk 00:00:55]} Rxa1
{[%emt 00:00:06] [%clk 00:01:24]} 24. Rxa1 {[%clk 00:00:56]} Ra8 {[%clk
00:01:25]} 25. Qc1 {[%emt 00:00:05] [%clk 00:00:52]} Ra5 {[%emt 00:00:03] [%clk
00:01:25]} 26. Ne3 {[%emt 00:00:07] [%clk 00:00:47]} Qa8 {[%emt 00:00:01] [%clk
00:01:25]} 27. Rxa5 {[%emt 00:00:01] [%clk 00:00:48]} Qxa5 {[%clk 00:01:27]} 28.
c3 {[%emt 00:00:01] [%clk 00:00:49]} g6 {[%emt 00:00:06] [%clk 00:01:23]} 29.
Nf2 {[%emt 00:00:03] [%clk 00:00:48]} Ne8 {[%emt 00:00:12] [%clk 00:01:13]} 30.
Nd3 {[%emt 00:00:05] [%clk 00:00:44]} Qa2 {[%emt 00:00:07] [%clk 00:01:09]} 31.
f4 {[%emt 00:00:06] [%clk 00:00:40]} exf4 {[%emt 00:00:09] [%clk 00:01:02]} 32.
gxf4 {[%emt 00:00:04] [%clk 00:00:38]} Qa7 {[%emt 00:00:31] [%clk 00:00:32]} 33.
e5 {[%emt 00:00:07] [%clk 00:00:34]} Qc7 {[%emt 00:00:04] [%clk 00:00:30]} 34.
c4 {[%emt 00:00:05] [%clk 00:00:31]} Ng7 {[%emt 00:00:14] [%clk 00:00:17]} 35.
Be4 {[%emt 00:00:15] [%clk 00:00:18]} Qd8 {[%emt 00:00:10] [%clk 00:00:09]} 36.
Qe1 {[%clk 00:00:19]} bxc4 {[%emt 00:00:01] [%clk 00:00:10]} 37. Nxc4 {[%clk
00:00:20]} dxe5 {[%emt 00:00:01] [%clk 00:00:11]} 38. fxe5 {[%emt 00:00:02]
[%clk 00:00:20]} Bf5 {[%emt 00:00:01] [%clk 00:00:12]} 39. Nd6 {[%emt 00:00:02]
[%clk 00:00:19]} Bxe4+ {[%emt 00:00:08] [%clk 00:00:07]} 40. Qxe4 {[%clk
00:00:21]} Qd7 {[%clk 00:00:08]} 41. Kg2 {[%emt 00:00:02] [%clk 00:00:21]} Qe7
{[%emt 00:00:02] [%clk 00:00:08]} 42. Nxc5 {[%emt 00:00:04] [%clk 00:00:19]} Nf5
{[%emt 00:00:04] [%clk 00:00:06]} 43. Nxf5 {[%emt 00:00:03] [%clk 00:00:18]}
Qxc5 {[%emt 00:00:01] [%clk 00:00:07]} 44. Ne3 {[%emt 00:00:08] [%clk 00:00:12]}
Qc1 {[%emt 00:00:04] [%clk 00:00:06]} 45. Nc4 {[%emt 00:00:03] [%clk 00:00:10]}
Qd1 {[%emt 00:00:03] [%clk 00:00:05]} 46. e6 {[%emt 00:00:02] [%clk 00:00:10]}
fxe6 {[%emt 00:00:04] [%clk 00:00:00]} 47. dxe6 {[%emt 00:00:06]} 1-0

[Site "Europe Echecs"]